bitfinex/quotes_BTCUSD_20240918
["timestamp","ask_amount","ask_price","bid_price","bid_amount"]
[1726650900647,1.40993548,60138.0,60137.0,0.0021377]
[1726650900889,1.50916007,60138.0,60137.0,0.0021377]
[1726650901165,1.07736748,60138.0,60137.0,0.0021377]
[1726650901431,1.15177171,60138.0,60137.0,0.0021377]
[1726650901677,1.12697049,60138.0,60137.0,0.0021377]
[1726650903168,1.15177171,60138.0,60137.0,0.0021377]
[1726650903405,1.12697255,60138.0,60137.0,0.0021377]
[1726650903647,1.40993548,60138.0,60137.0,0.0021377]
[1726650903898,1.15177171,60138.0,60137.0,0.0021377]
[1726650904138,1.48435368,60138.0,60137.0,0.0021377]
[1726650906676,1.48435368,60138.0,60132.0,0.0005]
[1726650906677,0.50091,60131.0,60130.0,1.50485828]
[1726650906904,0.53091,60131.0,60130.0,1.50485828]
[1726650907344,0.863517,60131.0,60130.0,1.50485828]
[1726650908039,0.863517,60131.0,60130.0,1.50585828]
[1726650913222,0.863517,60131.0,60130.0,1.50668028]
[1726650913740,1.196124,60131.0,60130.0,1.50668028]
[1726650915858,1.29437414,60131.0,60130.0,1.50668028]
[1726650916107,1.39317414,60131.0,60130.0,1.50668028]
[1726650916584,1.46759502,60131.0,60130.0,1.50668028]
[1726650916819,1.5172547,60131.0,60130.0,1.50668028]
[1726650917306,1.5172547,60131.0,60130.0,1.50568028]
[1726650917571,1.39317414,60131.0,60130.0,1.50568028]
[1726650917816,1.39817414,60131.0,60130.0,1.50568028]
[1726650918068,1.5172547,60131.0,60130.0,1.50568028]
[1726650918310,1.5262547,60131.0,60130.0,1.50568028]
[1726650918554,1.40217414,60131.0,60130.0,1.50568028]
[1726650919506,1.50138928,60131.0,60130.0,1.50568028]
[1726650919984,1.5262547,60131.0,60130.0,1.50568028]
[1726650920209,1.40217414,60131.0,60130.0,1.50568028]
[1726650921146,0.0781,60120.0,60111.0,3.3e-07]
[1726650921440,1.296492,60112.0,60111.0,3.3e-07]
[1726650921677,1.629204,60112.0,60111.0,3.3e-07]
[1726650921936,1.3460976,60112.0,60111.0,3.3e-07]
[1726650922177,1.6788096,60112.0,60111.0,3.3e-07]
[1726650922444,1.3460976,60112.0,60111.0,3.3e-07]
[1726650922668,1.296492,60112.0,60111.0,3.3e-07]
[1726650924297,1.310492,60112.0,60111.0,3.3e-07]
[1726650924525,1.47354567,60112.0,60111.0,3.3e-07]
[1726650924782,1.35954567,60112.0,60111.0,3.3e-07]
[1726650925065,1.210492,60112.0,60111.0,3.3e-07]
[1726650925778,1.210492,60112.0,60111.0,0.00082233]
[1726650926037,0.529068,60112.0,60111.0,0.00082233]
[1726650926282,0.86178,60112.0,60111.0,0.00082233]
[1726650926781,0.529068,60112.0,60111.0,0.00082233]
[1726650927019,0.86178,60112.0,60111.0,0.00082233]
[1726650927467,0.87578,60112.0,60111.0,0.00082233]
[1726650927695,0.86178,60112.0,60111.0,0.00082233]
[1726650928165,0.87078,60112.0,60111.0,0.00082233]
[1726650928382,0.86178,60112.0,60111.0,0.00082233]
[1726650928883,0.86878,60112.0,60111.0,0.00082233]
[1726650929123,0.86178,60112.0,60111.0,0.00082233]
[1726650929358,0.86878,60112.0,60111.0,0.00082233]
[1726650929592,0.87078,60112.0,60111.0,0.00082233]
[1726650929821,0.538068,60112.0,60111.0,0.00082233]
[1726650930083,0.87078,60112.0,60111.0,0.00082233]
[1726650930813,0.86378,60112.0,60111.0,0.00082233]
[1726650931051,1.203392,60112.0,60111.0,0.00082233]
[1726650931283,1.202492,60112.0,60111.0,0.00082233]
[1726650931538,1.195492,60112.0,60111.0,0.00082233]
[1726650931765,0.86878,60112.0,60111.0,0.00082233]
[1726650932244,1.200692,60112.0,60111.0,0.00082233]
[1726650932487,1.200492,60112.0,60111.0,0.00082233]
[1726650932970,1.200192,60112.0,60111.0,0.00082233]
[1726650933207,1.199792,60112.0,60111.0,0.00082233]
[1726650933437,1.199692,60112.0,60111.0,0.00082233]
[1726650933674,1.199592,60112.0,60111.0,0.00082233]
[1726650933920,0.86628,60112.0,60111.0,0.00082233]
[1726650934140,0.86608,60112.0,60111.0,0.00082233]
[1726650934369,0.86598,60112.0,60111.0,0.00082233]
[1726650934588,0.86588,60112.0,60111.0,0.00082233]
[1726650934836,0.86378,60112.0,60111.0,0.00082233]
[1726650936776,1.196492,60112.0,60111.0,0.00082233]
[1726650937235,1.198492,60112.0,60111.0,0.00082233]
[1726650937710,1.192492,60112.0,60111.0,0.00082233]
[1726650938031,1.46954567,60112.0,60111.0,0.00082233]
[1726650938263,1.45554567,60112.0,60111.0,0.00082233]
[1726650938481,1.305492,60112.0,60111.0,0.00082233]
[1726650938937,1.292492,60112.0,60111.0,0.00082233]
[1726650939219,1.80225767,60112.0,60111.0,0.00082233]
[1726650939456,1.47118967,60112.0,60111.0,0.00082233]
[1726650939691,1.80390167,60112.0,60111.0,0.00082233]
[1726650939918,1.47118967,60112.0,60111.0,0.00082233]
[1726650940406,1.80390167,60112.0,60111.0,0.00082233]
[1726650940647,1.45718967,60112.0,60111.0,0.00082233]
[1726650941144,1.47118967,60112.0,60111.0,0.00082233]
[1726650941611,1.80390167,60112.0,60111.0,0.00082233]
[1726650941841,1.47118967,60112.0,60111.0,0.00082233]
[1726650942296,1.45718967,60112.0,60111.0,0.00082233]
[1726650942750,1.47118967,60112.0,60111.0,0.00082233]
[1726650943009,1.80390167,60112.0,60111.0,0.00082233]
[1726650943246,1.47118967,60112.0,60111.0,0.00082233]
[1726650943692,1.80390167,60112.0,60111.0,0.00082233]
[1726650944151,1.88040167,60112.0,60111.0,0.00082233]
[1726650944353,1.89440167,60112.0,60111.0,0.00082233]
[1726650944658,2.21311367,60112.0,60111.0,0.00082233]
[1726650944885,2.21311367,60112.0,60101.0,0.00403138]
[1726650944886,1.622451,60102.0,60101.0,0.00403138]
[1726650945133,1.88550467,60102.0,60101.0,0.00403138]
[1726650946842,1.55273767,60102.0,60101.0,0.00403138]
[1726650948009,1.46873767,60102.0,60101.0,0.00403138]
[1726650948249,1.45573767,60102.0,60101.0,0.00403138]
[1726650948501,0.857917,60102.0,60101.0,0.00403138]
[1726650948762,0.53915,60102.0,60101.0,0.00403138]
[1726650949237,0.79890367,60102.0,60101.0,0.00403138]
[1726650949484,0.79890367,60102.0,60101.0,3.8e-07]
[1726650949485,1.78320467,60102.0,60101.0,3.8e-07]
[1726650949708,1.81320467,60102.0,60101.0,3.8e-07]
[1726650949932,1.92720467,60102.0,60101.0,3.8e-07]
[1726650950163,2.03656428,60102.0,60101.0,3.8e-07]
[1726650950386,2.06324409,60102.0,60101.0,3.8e-07]
[1726650950662,2.40417167,60102.0,60101.0,3.8e-07]
[1726650950879,2.47821109,60102.0,60101.0,3.8e-07]
[1726650951107,2.47821109,60102.0,60101.0,0.00082238]
[1726650951331,1.292936,60089.0,60088.0,0.283006]
[1726650951556,1.45598967,60089.0,60088.0,0.283006]
[1726650952647,1.45398967,60089.0,60088.0,0.283006]
[1726650953018,1.45378945,60089.0,60088.0,0.283006]
[1726650955032,1.46378945,60089.0,60088.0,0.283006]
[1726650955274,1.35378945,60089.0,60088.0,0.283006]
[1726650955500,1.36478945,60089.0,60088.0,0.283006]
[1726650957328,1.36478945,60089.0,60088.0,0.282106]
[1726650957554,1.69762845,60089.0,60088.0,0.282106]
[1726650957987,1.69762845,60089.0,60088.0,0.282006]
[1726650958253,1.36478945,60089.0,60088.0,0.281206]
[1726650958693,1.69762845,60089.0,60088.0,0.281006]
[1726650958910,1.77992845,60089.0,60088.0,0.281006]
[1726650959142,1.77992845,60089.0,60088.0,0.280206]
[1726650959143,1.96188869,60089.0,60088.0,0.280206]
[1726650959640,1.96188869,60089.0,60088.0,0.280006]
[1726650959848,1.95288869,60089.0,60088.0,0.279406]
[1726650960094,1.95288869,60089.0,60088.0,0.279206]
[1726650960315,2.29972769,60089.0,60088.0,0.279206]
[1726650960566,1.95288869,60089.0,60088.0,0.279006]
[1726650960793,2.28572769,60089.0,60088.0,0.279006]
[1726650961503,1.92288869,60089.0,60088.0,0.279006]
[1726650961734,1.45378945,60089.0,60088.0,0.279006]
[1726650961964,0.49905778,60089.0,60088.0,0.279006]
[1726650962220,0.53905778,60089.0,60088.0,0.279006]
[1726650962433,0.20621878,60089.0,60088.0,0.279006]
[1726650962671,0.53905778,60089.0,60088.0,0.279006]
[1726650963121,0.166414,60092.0,60088.0,0.279006]
[1726650963380,0.01738474,60106.0,60090.0,0.0987]
[1726650963381,0.026,60100.0,60090.0,0.0987]
[1726650963606,0.026,60092.0,60090.0,0.166415]
[1726650963846,0.026,60090.0,60089.0,0.0773]
[1726650964747,0.026,60092.0,60089.0,0.0773]
[1726650965196,0.026,60090.0,60089.0,0.0773]
[1726650966095,0.166411,60092.0,60089.0,0.0773]
[1726650966315,0.026,60090.0,60089.0,0.0773]
[1726650966539,0.003,60090.0,60089.0,0.243719]
[1726650967910,0.003,60090.0,60089.0,0.0773]
[1726650968330,0.003,60090.0,60089.0,0.243719]
[1726650968557,0.003,60090.0,60089.0,0.0773]
[1726650968795,0.003,60090.0,60089.0,0.410139]
[1726650969041,0.003,60090.0,60089.0,0.243719]
[1726650969278,0.169417,60090.0,60089.0,0.0773]
[1726650969505,0.01848551,60090.0,60089.0,0.0773]
[1726650971393,0.01848551,60090.0,60089.0,0.243719]
[1726650971863,0.01848551,60090.0,60089.0,0.0773]
[1726650972599,0.01848551,60090.0,60088.0,0.279828]
[1726650972600,0.192419,60089.0,60088.0,0.279828]
[1726650972833,0.525258,60089.0,60088.0,0.279828]
[1726650973065,0.19221878,60089.0,60088.0,0.279828]
[1726650973302,0.85789678,60089.0,60088.0,0.279828]
[1726650973560,0.52505778,60089.0,60088.0,0.279828]
[1726650973798,0.19221878,60089.0,60088.0,0.279828]
[1726650974261,0.86689678,60089.0,60088.0,0.279828]
[1726650974489,0.53405778,60089.0,60088.0,0.279828]
[1726650975650,0.52505778,60089.0,60088.0,0.279828]
[1726650975872,0.53305778,60089.0,60088.0,0.279828]
[1726650976791,0.52505778,60089.0,60088.0,0.279828]
[1726650977509,0.53405778,60089.0,60088.0,0.279828]
[1726650977757,0.86689678,60089.0,60088.0,0.279828]
[1726650977996,0.53405778,60089.0,60088.0,0.279828]
[1726650978233,0.203063,60089.0,60088.0,0.279828]
[1726650978458,0.010644,60089.0,60088.0,0.279828]
[1726650978944,0.010644,60089.0,60088.0,0.44625]
[1726650979185,0.010644,60089.0,60088.0,0.279828]
[1726650979442,0.010644,60089.0,60088.0,1.39729367]
[1726650979929,0.001644,60089.0,60088.0,1.39729367]
[1726650980172,0.011644,60089.0,60088.0,1.06444867]
[1726650980631,0.001644,60089.0,60088.0,1.06444867]
[1726650980869,0.003644,60089.0,60088.0,0.379128]
[1726650981109,0.168063,60089.0,60088.0,0.379128]
[1726650981591,0.001644,60089.0,60088.0,0.379128]
[1726650982294,0.001644,60089.0,60088.0,0.279828]
[1726650982295,0.500902,60089.0,60088.0,0.279828]
[1726650983256,0.168063,60089.0,60088.0,0.279828]
[1726650983962,0.171063,60089.0,60088.0,0.279828]
[1726650984679,0.500902,60089.0,60088.0,0.279828]
[1726650984920,0.056,60086.0,60080.0,1.95025943]
[1726650985206,0.1767,60088.0,60080.0,1.93287943]
[1726650985207,1.02126067,60081.0,60080.0,1.93287943]
[1726650985427,1.45414367,60081.0,60080.0,1.93287943]
[1726650985692,1.78902667,60081.0,60080.0,1.93287943]
[1726650985913,1.45614367,60081.0,60080.0,1.93287943]
[1726650986409,1.50561112,60081.0,60080.0,1.93287943]
[1726650986642,1.78902667,60081.0,60080.0,1.93287943]
[1726650986877,1.97032667,60081.0,60080.0,1.93287943]
[1726650987810,1.98432667,60081.0,60080.0,1.93287943]
[1726650988281,2.03376628,60081.0,60080.0,1.93287943]
[1726650988524,1.98432667,60081.0,60080.0,1.93287943]
[1726650989201,1.89432667,60081.0,60080.0,1.93287943]
[1726650989437,1.92432667,60081.0,60080.0,1.93287943]
[1726650989894,2.03377016,60081.0,60080.0,1.93287943]
[1726650990117,2.31720967,60081.0,60080.0,1.93287943]
[1726650990401,2.36662756,60081.0,60080.0,1.93287943]
[1726650990631,2.03374456,60081.0,60080.0,1.93287943]
[1726650990894,2.36662756,60081.0,60080.0,1.93287943]
[1726650991130,2.31720967,60081.0,60080.0,1.93287943]
[1726650991378,2.36661798,60081.0,60080.0,1.93287943]
[1726650992295,1.92432667,60081.0,60080.0,1.93287943]
[1726650992763,1.92432667,60081.0,60080.0,1.93370143]
[1726650992764,2.25720967,60081.0,60080.0,1.93370143]
[1726650993735,1.92432667,60081.0,60080.0,1.93370143]
[1726650994209,1.92432667,60081.0,60080.0,1.70054543]
[1726650994210,2.31720967,60081.0,60080.0,1.70054543]
[1726650994444,2.65209267,60081.0,60080.0,1.66725643]
[1726650994688,2.70147535,60081.0,60080.0,1.66725643]
[1726650994903,2.65009267,60081.0,60080.0,1.50081143]
[1726650995130,2.31720967,60081.0,60080.0,1.50081143]
[1726650995904,2.34220967,60081.0,60080.0,1.33436643]
[1726650996133,2.43897503,60081.0,60080.0,1.33436643]
[1726650996601,2.67309267,60081.0,60080.0,1.33436643]
[1726650996859,2.34020967,60081.0,60080.0,1.16792143]
[1726650997342,2.42487501,60081.0,60080.0,1.16792143]
[1726650997584,2.39120469,60081.0,60080.0,1.16792143]
[1726650998065,2.31720967,60081.0,60080.0,1.16792143]
[1726650998312,2.31720967,60081.0,60080.0,1.16326037]
[1726650998788,2.03364777,60081.0,60080.0,1.16326037]
[1726650998790,1.98432667,60081.0,60080.0,1.16326037]
[1726651000460,2.30320967,60081.0,60080.0,1.16326037]
[1726651000747,1.98432667,60081.0,60080.0,1.16326037]
[1726651000993,1.98432667,60081.0,60080.0,1.27966861]
[1726651001260,1.98432667,60081.0,60080.0,1.16326037]
[1726651001507,1.98771141,60081.0,60080.0,1.16326037]
[1726651002028,1.98771141,60081.0,60080.0,1.09668237]
[1726651002029,2.20001141,60081.0,60080.0,1.09668237]
[1726651002276,2.56821551,60081.0,60080.0,1.09668237]
[1726651002521,2.51889441,60081.0,60080.0,1.09668237]
[1726651002758,2.32059441,60081.0,60080.0,1.09668237]
[1726651003236,2.51889441,60081.0,60080.0,0.99681537]
[1726651003478,2.51889441,60081.0,60080.0,0.96352637]
[1726651004202,2.50989441,60081.0,60080.0,0.96352637]
[1726651004466,2.00171141,60081.0,60080.0,0.96352637]
[1726651004710,1.98771141,60081.0,60080.0,0.96352637]
[1726651004956,2.00171141,60081.0,60080.0,0.96352637]
[1726651005203,2.00335541,60081.0,60080.0,0.96352637]
[1726651009937,2.17865541,60081.0,60080.0,0.96352637]
[1726651011130,2.20165541,60081.0,60080.0,0.93023737]
[1726651011367,2.53653841,60081.0,60080.0,0.79708137]
[1726651012805,2.53653841,60081.0,60080.0,0.63063637]
[1726651013041,2.53653841,60081.0,60080.0,0.59734737]
[1726651013375,2.53653841,60081.0,60080.0,0.56405837]
[1726651013807,2.53653841,60081.0,60080.0,0.53076937]
[1726651014275,2.52253841,60081.0,60080.0,0.39761337]
[1726651014471,2.53653841,60081.0,60080.0,0.39761337]
[1726651015327,2.58585951,60081.0,60080.0,0.36432437]
[1726651015539,2.58585951,60081.0,60080.0,0.29774637]
[1726651015540,2.53653841,60081.0,60080.0,0.29774637]
[1726651015997,2.61052558,60081.0,60080.0,0.29774637]
[1726651017246,2.53653841,60081.0,60080.0,0.29774637]
[1726651018239,2.53653841,60081.0,60080.0,0.26445737]
[1726651018682,2.53453841,60081.0,60080.0,0.23116837]
[1726651019128,2.53653841,60081.0,60080.0,0.19787937]
[1726651019361,2.53653841,60081.0,60080.0,0.16459037]
[1726651020289,1.88597803,60081.0,60080.0,0.16459037]
[1726651020526,1.81205541,60081.0,60080.0,0.16459037]
[1726651020756,1.79805541,60081.0,60080.0,0.16459037]
[1726651021253,1.81205541,60081.0,60080.0,0.16459037]
[1726651021485,1.79805541,60081.0,60080.0,0.16459037]
[1726651021723,1.91205541,60081.0,60080.0,0.16459037]
[1726651022655,1.96134169,60081.0,60080.0,0.16459037]
[1726651023129,1.91205541,60081.0,60080.0,0.16459037]
[1726651023369,1.96134169,60081.0,60080.0,0.16459037]
[1726651023588,1.96138169,60081.0,60080.0,0.16459037]
[1726651023824,1.98753477,60081.0,60080.0,0.16459037]
[1726651024294,1.93821531,60081.0,60080.0,0.16459037]
[1726651024524,1.91209541,60081.0,60080.0,0.16459037]
[1726651024753,2.08739541,60081.0,60080.0,0.16459037]
[1726651024977,1.91209541,60081.0,60080.0,0.16459037]
[1726651025200,1.98602483,60081.0,60080.0,0.16459037]
[1726651025423,1.91209541,60081.0,60080.0,0.16459037]
[1726651026543,1.93821566,60081.0,60080.0,0.16459037]
[1726651028593,2.13651566,60081.0,60080.0,0.13130137]
[1726651028856,2.76274964,60081.0,60080.0,0.13130137]
[1726651029088,2.75074964,60081.0,60080.0,0.13130137]
[1726651029601,2.76474964,60081.0,60080.0,0.13130137]
[1726651030336,2.76474964,60081.0,60080.0,3.7e-07]
[1726651031045,2.75074964,60081.0,60080.0,3.7e-07]
[1726651031343,2.76474964,60081.0,60080.0,3.7e-07]
[1726651031579,2.75074964,60081.0,60080.0,3.7e-07]
[1726651032053,2.76474964,60081.0,60080.0,3.7e-07]
[1726651033221,0.118,60064.0,60063.0,4.8e-07]
[1726651033460,1.38879867,60064.0,60063.0,4.8e-07]
[1726651033698,2.17280565,60064.0,60063.0,4.8e-07]
[1726651033955,2.71650341,60064.0,60063.0,4.8e-07]
[1726651034411,2.21631922,60064.0,60063.0,4.8e-07]
[1726651034645,2.23031922,60064.0,60063.0,4.8e-07]
[1726651034873,2.23031922,60064.0,60052.0,0.03150048]
[1726651034874,1.293636,60053.0,60052.0,0.03150048]
[1726651035099,1.45668967,60053.0,60052.0,0.03150048]
[1726651035378,1.293654,60052.0,60050.0,0.000992]
[1726651035605,1.45670767,60052.0,60050.0,0.000992]
[1726651037190,1.78975167,60052.0,60050.0,0.000992]
[1726651037409,1.45670767,60052.0,60050.0,0.000992]
[1726651038341,1.58036773,60052.0,60050.0,0.000992]
[1726651038790,1.58036781,60052.0,60050.0,0.000992]
[1726651039260,1.59436781,60052.0,60050.0,0.000992]
[1726651039930,1.25932381,60052.0,60050.0,0.000992]
[1726651040155,1.03566367,60052.0,60050.0,0.000992]
[1726651040616,1.03766367,60052.0,60050.0,0.000992]
[1726651040859,1.02366367,60052.0,60050.0,0.000992]
[1726651041314,1.58036029,60052.0,60050.0,0.000992]
[1726651041554,1.45670767,60052.0,60050.0,0.000992]
[1726651041806,1.60649139,60052.0,60051.0,0.001023]
[1726651042058,1.48448477,60052.0,60051.0,0.001023]
[1726651042289,1.49848477,60052.0,60051.0,0.001023]
[1726651042535,1.58334856,60052.0,60051.0,0.001023]
[1726651042763,1.53391886,60052.0,60051.0,0.001023]
[1726651043052,1.54791886,60052.0,60051.0,0.001023]
[1726651043294,1.55863511,60052.0,60051.0,0.001023]
[1726651043770,1.54650401,60052.0,60051.0,0.001023]
[1726651043998,1.53250401,60052.0,60051.0,0.001023]
[1726651044229,1.54650401,60052.0,60051.0,0.001023]
[1726651044461,1.47235367,60052.0,60051.0,0.001023]
[1726651044958,1.54650401,60052.0,60051.0,0.001023]
[1726651045643,1.53250401,60052.0,60051.0,0.001023]
[1726651046065,1.54650401,60052.0,60051.0,0.001023]
[1726651046297,1.45835367,60052.0,60051.0,0.001023]
[1726651046518,1.53247385,60052.0,60051.0,0.001023]
[1726651046805,1.55860422,60052.0,60051.0,0.001023]
[1726651047178,1.57260422,60052.0,60051.0,0.001023]
[1726651047377,1.49848404,60052.0,60051.0,0.001023]
[1726651047603,1.48448404,60052.0,60051.0,0.001023]
[1726651047804,1.53247385,60052.0,60051.0,0.001023]
[1726651048232,1.45835367,60052.0,60051.0,0.001023]
[1726651048475,1.50775997,60052.0,60051.0,0.001023]
[1726651048672,1.45835367,60052.0,60051.0,0.001023]
[1726651049127,1.47235367,60052.0,60051.0,0.001023]
[1726651049363,1.45835367,60052.0,60051.0,0.001023]
[1726651049778,1.47235367,60052.0,60051.0,0.001023]
[1726651049979,1.45835367,60052.0,60051.0,0.001023]
[1726651050416,1.47235367,60052.0,60051.0,0.001023]
[1726651050669,1.13930967,60052.0,60051.0,0.001023]
[1726651050876,0.029646,60052.0,60051.0,0.095323]
[1726651051081,0.194168,60052.0,60051.0,0.10534893]
[1726651051284,0.027646,60052.0,60051.0,0.10534893]
[1726651051957,0.001646,60052.0,60051.0,0.10534893]
[1726651052164,3.0,60061.0,60053.0,0.0977]
[1726651052385,3.0,60061.0,60054.0,0.05239839]
[1726651052590,3.0,60061.0,60056.0,0.333021]
[1726651052788,3.0,60061.0,60057.0,0.166508]
[1726651053240,3.0,60061.0,60055.0,0.0977]
[1726651053446,3.0,60061.0,60056.0,0.166509]
[1726651053654,3.0,60061.0,60057.0,0.06496434]
[1726651053871,3.011,60061.0,60057.0,0.06496434]
[1726651054289,3.0,60061.0,60057.0,0.23147234]
[1726651054547,3.0,60061.0,60057.0,0.06496434]
[1726651055038,3.0,60061.0,60058.0,0.04328063]
[1726651055728,3.02612206,60061.0,60059.0,0.1736]
[1726651055973,2.65952206,60061.0,60060.0,0.618]
[1726651056202,2.14632612,60061.0,60060.0,1.10855367]
[1726651056435,1.84884426,60061.0,60060.0,1.54155367]
[1726651056656,1.8169948,60061.0,60060.0,1.87455367]
[1726651057143,1.8099948,60061.0,60060.0,1.89249499]
[1726651057366,1.8139948,60061.0,60060.0,1.89249499]
[1726651057824,1.8099948,60061.0,60060.0,1.89249499]
[1726651058961,1.78387274,60061.0,60060.0,1.89249499]
[1726651059197,1.8099887,60061.0,60060.0,1.89249499]
[1726651059429,1.8109887,60061.0,60060.0,1.89449499]
[1726651059694,1.79521964,60061.0,60060.0,1.89249499]
[1726651059933,1.79621964,60061.0,60060.0,1.89549499]
[1726651060163,1.63400114,60061.0,60060.0,1.89549499]
[1726651061156,1.63400114,60061.0,60060.0,1.54455367]
[1726651088371,1.54311491,60061.0,60060.0,1.7926544]
[1726651096172,0.001684,60081.0,60080.0,1.87405367]
[1726651097169,0.001684,60081.0,60080.0,2.20694267]
[1726651098710,0.001684,60081.0,60080.0,2.10694267]
[1726651098922,0.001644,60089.0,60088.0,1.377957]
[1726651099145,0.001644,60089.0,60088.0,1.87385567]
[1726651099362,0.001644,60089.0,60088.0,2.20670067]
[1726651140621,1e-06,60113.0,60112.0,2.43950267]
[1726651141074,1e-06,60113.0,60112.0,1.69107867]
[1726651141295,0.081201,60113.0,60112.0,1.69107867]
[1726651142556,0.081201,60113.0,60112.0,1.77407867]
[1726651143033,0.081201,60113.0,60112.0,1.87407867]
[1726651143483,0.081201,60113.0,60112.0,1.89218317]
[1726651145979,0.081201,60113.0,60112.0,1.89216739]
[1726651146217,0.081201,60113.0,60112.0,1.83216739]
[1726651158971,0.174,60100.0,60099.0,0.16305367]
[1726651159388,0.174,60100.0,60099.0,0.32944567]
[1726651159593,0.174,60100.0,60099.0,0.66222967]
[1726651160065,0.174,60100.0,60099.0,0.68522967]
[1726651160297,0.174,60100.0,60099.0,1.35079767]
[1726651160522,0.174,60100.0,60099.0,1.01801367]
[1726651162363,0.174,60100.0,60099.0,0.68522967]
[1726651190235,0.00160056,60087.0,60067.0,0.000822]
[1726651190451,0.00160056,60087.0,60073.0,0.332927]
[1726651190452,0.00137605,60087.0,60073.0,0.332927]
[1726651190662,0.332846,60088.0,60074.0,0.499383]
[1726651190663,0.00137605,60075.0,60074.0,0.499383]
[1726651191519,0.00137605,60075.0,60074.0,0.832305]
[1726651193460,0.00137605,60075.0,60074.0,0.499383]
[1726651208497,0.00126016,60071.0,60070.0,0.99541367]
[1726651208934,0.00126016,60071.0,60070.0,1.32835767]
[1726651209390,0.00126016,60071.0,60070.0,0.99541367]
[1726651226802,0.00126016,60107.0,60106.0,0.831862]
[1726651263284,0.0015426,60148.0,60147.0,1.77238467]
[1726651264133,0.0015426,60148.0,60147.0,1.71238467]
[1726651264362,0.0015426,60148.0,60147.0,1.68938467]
[1726651264557,0.0015426,60148.0,60147.0,1.74938467]
[1726651265430,0.0015426,60148.0,60147.0,1.77238467]
[1726651265921,0.0015426,60148.0,60147.0,1.74938467]
[1726651266149,0.0866426,60148.0,60147.0,1.35686667]
[1726651266316,0.08790276,60148.0,60147.0,0.99434867]
[1726651266521,0.18260276,60148.0,60147.0,0.32931267]
[1726651266718,0.18260276,60148.0,60147.0,0.16305367]
[1726651267390,0.00126016,60141.0,60140.0,0.166278]
[1726651267559,0.09426016,60141.0,60140.0,0.49561067]
[1726651267764,0.17916016,60141.0,60140.0,0.99444567]
[1726651269160,0.1779,60141.0,60140.0,1.32700267]
[1726651269391,0.1779,60141.0,60140.0,1.35700267]
[1726651269591,0.1779,60141.0,60140.0,1.38000267]
[1726651269814,0.00280276,60148.0,60147.0,0.884295]
[1726651269815,0.0015426,60148.0,60147.0,0.884295]
[1726651270014,0.0015426,60148.0,60147.0,1.37986667]
[1726651297172,0.001644,60178.0,60177.0,2.02040208]
[1726651297640,0.001644,60178.0,60177.0,1.96768965]
[1726651298199,0.001644,60178.0,60177.0,1.55023833]
[1726651298440,0.077744,60178.0,60177.0,1.32628567]
[1726651298678,0.07948216,60178.0,60177.0,1.32628567]
[1726651341316,0.0937801,60169.0,60168.0,0.99405867]
[1726651364417,0.2646131,60141.0,60140.0,0.000822]
[1726651365265,0.0983381,60141.0,60140.0,0.000822]
[1726651390844,0.001644,60142.0,60141.0,1.32698167]
[1726651391654,0.0031821,60142.0,60141.0,1.32698167]
[1726651393720,0.0031821,60142.0,60141.0,1.3478021]
[1726651403085,0.0031821,60142.0,60141.0,1.3486231]
[1726651404801,0.001644,60142.0,60141.0,1.3486231]
[1726651405351,0.001644,60142.0,60141.0,2.2037251]
[1726651405572,0.001644,60142.0,60141.0,2.34836739]
[1726651406031,0.001644,60142.0,60141.0,2.34831156]
[1726651406254,0.001644,60142.0,60141.0,2.34830613]
[1726651407785,0.25109514,60163.0,60162.0,0.831087]
[1726651408024,0.25109514,60163.0,60162.0,1.32657567]
[1726651408025,0.24955704,60163.0,60162.0,1.32657567]
[1726651408274,0.0015381,60165.0,60164.0,1.163484]
[1726651408550,0.0015381,60165.0,60164.0,1.32653767]
[1726651409449,0.0015381,60166.0,60165.0,1.163466]
[1726651409668,0.0015381,60166.0,60165.0,1.32651967]
[1726651411800,0.0025381,60166.0,60165.0,1.32651967]
[1726651414468,0.0025381,60166.0,60165.0,0.166209]
[1726651415052,0.0015381,60166.0,60165.0,0.166209]
[1726651415289,0.0015381,60166.0,60165.0,0.498628]
[1726651415520,0.0015381,60166.0,60165.0,0.166209]
[1726651415960,0.0025381,60166.0,60165.0,0.166209]
[1726651416228,0.0025381,60166.0,60165.0,0.498628]
[1726651416446,0.0025381,60166.0,60165.0,0.831047]
[1726651416673,0.0025381,60166.0,60165.0,1.32651967]
[1726651416897,0.0015381,60166.0,60165.0,0.66168167]
[1726651418392,0.0085381,60166.0,60165.0,0.66168167]
[1726651418825,0.0015381,60166.0,60165.0,0.66168167]
[1726651419027,0.0025381,60166.0,60165.0,0.66168167]
[1726651419461,0.0015381,60166.0,60165.0,0.99410067]
[1726651419903,0.0085381,60166.0,60165.0,0.99410067]
[1726651420142,0.0015381,60166.0,60165.0,0.99410067]
[1726651422270,0.0025381,60166.0,60165.0,0.99410067]
[1726651422493,0.0015381,60166.0,60165.0,0.99410067]
[1726651422943,0.0065381,60166.0,60165.0,0.99410067]
[1726651423169,0.0015381,60166.0,60165.0,0.99410067]
[1726651423620,0.0025381,60166.0,60165.0,0.66168167]
[1726651423863,0.0015381,60166.0,60165.0,0.66168167]
[1726651424304,0.0035381,60166.0,60165.0,0.66168167]
[1726651429660,0.0015381,60154.0,60153.0,1.32675067]
[1726651450486,0.8326951,60157.0,60156.0,0.000821]
[1726651450894,0.8336951,60157.0,60156.0,0.000821]
[1726651466169,0.0015381,60157.0,60156.0,0.000821]
[1726651476607,1.95647477,60157.0,60156.0,0.000821]
[1726651476814,1.85647477,60157.0,60156.0,0.000821]
[1726651477022,1.95647477,60157.0,60156.0,0.000821]
[1726651489540,0.5003481,60143.0,60142.0,0.000821]
[1726651489740,0.1678081,60143.0,60142.0,0.000821]
[1726651502627,0.1678081,60143.0,60142.0,0.000821]
[1726651503367,0.0015381,60143.0,60142.0,0.000821]
[1726651515701,0.0015381,60148.0,60147.0,0.99434667]
[1726651515924,0.0015381,60150.0,60149.0,0.831267]
[1726651516255,0.0015381,60152.0,60151.0,0.166248]
[1726651516447,0.0015381,60153.0,60152.0,0.498736]
[1726651516652,0.0015381,60153.0,60152.0,0.99428067]
[1726651517092,0.0015381,60153.0,60152.0,1.32677167]
[1726651519325,0.0015381,60153.0,60152.0,0.99428067]
[1726651520340,0.0015381,60153.0,60152.0,0.831227]
[1726651520604,0.0015381,60153.0,60152.0,0.498736]
[1726651521480,0.0015381,60153.0,60152.0,0.831227]
[1726651522043,0.0015381,60153.0,60152.0,0.498736]
[1726651522479,0.0015381,60153.0,60152.0,0.831227]
[1726651525138,0.0015381,60152.0,60151.0,0.498742]
[1726651525347,0.0015381,60152.0,60151.0,0.831238]